bitfinex/quotes_SOLUSD_20240912
["timestamp","ask_amount","ask_price","bid_price","bid_amount"]
[1726112607735,6.6166,136.03,135.97,23.1661]
[1726112608236,6.6166,136.03,135.98,6.6184]
[1726112610831,7.69962725,136.02,135.98,6.6184]
[1726112612043,6.1699,136.0,135.95,6.6196]
[1726112612333,16.2061,135.99,135.94,6.6205]
[1726112612538,22.8242,135.99,135.94,6.6205]
[1726112613606,22.8242,135.99,135.93,16.5514]
[1726112613607,16.2061,135.99,135.93,16.5514]
[1726112614831,6.6188,135.98,135.93,23.1724]
[1726112617244,6.6192,135.97,135.93,16.5514]
[1726112617420,6.6187,135.98,135.93,16.5514]
[1726112617734,6.6192,135.97,135.93,16.5514]
[1726112617937,22.8246,135.99,135.93,23.1724]
[1726112618110,6.6186,135.98,135.93,23.1724]
[1726112619942,6.6186,135.98,135.93,16.5514]
[1726112620154,6.6191,135.97,135.93,16.5514]
[1726112620447,6.6191,135.97,135.92,0.2656707]
[1726112621217,7.70365388,135.96,135.92,0.2656707]
[1726112622047,7.70365388,135.96,135.92,6.8869707]
[1726112630461,14.32315388,135.96,135.92,0.2656707]
[1726112640241,7.70365388,135.96,135.92,0.2656707]
[1726112640439,6.6201,135.95,135.92,0.2656707]
[1726112641168,7.70152251,135.94,135.92,0.2656707]
[1726112642741,7.70152251,135.94,135.92,6.8871707]
[1726112642950,7.70152251,135.94,135.93,6.621]
[1726112643150,6.6186,135.98,135.93,6.621]
[1726112643467,7.69869636,135.97,135.93,6.621]
[1726112644656,7.69869636,135.97,135.94,6.6204]
[1726112645570,7.69869636,135.97,135.95,6.6196]
[1726112647757,7.69869636,135.97,135.94,6.6205]
[1726112649572,7.69869636,135.97,135.93,16.5515]
[1726112649755,14.31779636,135.97,135.93,23.1724]
[1726112650079,6.6196,135.96,135.92,0.2656707]
[1726112652285,6.6201,135.95,135.92,0.2656707]
[1726112653661,7.69773827,135.94,135.92,0.2656707]
[1726112656281,7.69773827,135.94,135.92,16.8184707]
[1726112656472,22.8243,135.99,135.94,6.6204]
[1726112656661,7.68946063,135.96,135.94,6.6204]
[1726112656867,22.8243,135.99,135.94,6.6204]
[1726112657190,7.69543897,135.96,135.94,6.6204]
[1726112657679,22.8243,135.99,135.94,6.6204]
[1726112657877,7.69018439,135.96,135.94,6.6204]
[1726112658080,12.7875,136.0,135.94,16.5505]
[1726112658397,7.69449636,135.99,135.94,16.5505]
[1726112659178,7.69449636,135.99,135.95,6.62]
[1726112662384,14.31299636,135.99,135.94,23.171]
[1726112662781,6.6186,135.98,135.94,23.171]
[1726112663300,6.6186,135.98,135.94,16.5505]
[1726112664210,6.6186,135.98,135.93,6.6209]
[1726112664391,6.6193,135.97,135.92,6.8871707]
[1726112665394,6.6197,135.96,135.92,0.2656707]
[1726112666217,22.4183,135.97,135.92,6.8870707]
[1726112666911,6.6197,135.96,135.92,0.2656707]
[1726112668813,7.69674959,135.95,135.92,0.2656707]
[1726112671601,7.69674959,135.95,135.92,6.8871707]
[1726112672417,7.69674959,135.95,135.93,6.621]
[1726112672708,15.7992,135.97,135.94,6.6205]
[1726112672917,30.11423409,135.97,135.92,0.2656707]
[1726112673289,30.11423409,135.97,135.92,6.8871707]
[1726112674818,6.6197,135.96,135.92,6.8871707]
[1726112679913,30.11433409,135.97,135.92,6.8871707]
[1726112681804,30.11433409,135.97,135.93,6.6209]
[1726112683640,7.69593409,135.97,135.93,6.6209]
[1726112683815,7.69593409,135.97,135.94,6.6205]
[1726112686514,7.69593409,135.97,135.93,6.6209]
[1726112687108,7.69593409,135.97,135.94,6.6203]
[1726112687931,7.69593409,135.97,135.95,18.02030598]
[1726112688139,16.3503,136.01,135.95,16.5492]
[1726112688539,24.0455286,136.01,135.95,16.5492]
[1726112688909,24.0455286,136.01,135.97,6.619]
[1726112689115,30.6627286,136.01,135.96,6.6195]
[1726112692046,6.6176,136.0,135.96,6.6195]
[1726112692246,6.6176,136.0,135.93,55.7624]
[1726112692247,24.0455286,136.01,135.93,16.4617]
[1726112692457,6.6188,135.98,135.93,6.6206]
[1726112692941,6.6188,135.98,135.94,6.6205]
[1726112697022,6.2699,136.0,135.95,6.6198]
[1726112697023,12.8879,136.0,135.95,6.6198]
[1726112698742,7.69607152,135.99,135.95,6.6198]
[1726112699426,14.31427152,135.99,135.95,6.6198]
[1726112699832,14.31427152,135.99,135.94,6.6204]
[1726112703258,6.6186,135.98,135.93,23.1726]
[1726112706856,6.6192,135.97,135.93,16.5516]
[1726112707030,6.6196,135.96,135.93,16.5516]
[1726112707759,6.6201,135.95,135.92,0.2656707]
[1726112707962,15.792,135.97,135.92,16.8184707]
[1726112708131,15.792,135.97,135.94,6.6204]
[1726112708941,22.5339,136.0,135.94,16.5506]
[1726112709146,7.69403894,135.97,135.94,16.5506]
[1726112709358,22.5339,136.0,135.94,16.5506]
[1726112709566,6.6185,135.99,135.94,16.5506]
[1726112709862,6.6186,135.98,135.94,16.5506]
[1726112710234,6.6191,135.97,135.92,6.8870707]
[1726112710437,6.6197,135.96,135.92,0.2656707]
[1726112711762,14.31335067,135.98,135.92,6.8870707]
[1726112711935,7.69435067,135.98,135.92,0.2656707]
[1726112712139,7.69435067,135.98,135.95,6.6199]
[1726112714057,7.69435067,135.98,135.93,23.1725]
[1726112714262,6.6191,135.97,135.93,16.5516]
[1726112714450,14.31295067,135.98,135.93,23.1726]
[1726112715664,6.6191,135.97,135.93,16.5516]
[1726112717860,7.69435067,135.98,135.92,0.2656707]
[1726112717861,6.6196,135.96,135.92,0.2656707]
[1726112718060,22.6128,135.96,135.92,0.2656707]
[1726112718653,6.6201,135.95,135.92,0.2656707]
[1726112718860,6.6206,135.94,135.92,0.2656707]
[1726112719059,22.5617,135.96,135.92,0.2656707]
[1726112719060,6.621,135.93,135.92,0.2656707]
[1726112720565,14.31773401,135.93,135.92,0.2656707]
[1726112722154,34.31773401,135.93,135.92,0.2656707]
[1726112730467,40.94163401,135.93,135.92,0.2656707]
[1726112738686,34.31773401,135.93,135.92,0.2656707]
[1726112738881,14.31773401,135.93,135.92,0.2656707]
[1726112740215,34.31773401,135.93,135.92,0.2656707]
[1726112743508,34.31773401,135.93,135.88,0.2656707]
[1726112743509,6.623,135.89,135.88,0.2656707]
[1726112744194,14.31985203,135.89,135.88,0.2656707]
[1726112750050,7.69685203,135.89,135.88,0.2656707]
[1726112750416,16.5507,135.95,135.88,0.2656707]
[1726112750417,2.92311725,135.95,135.88,0.2656707]
[1726112750652,7.90289884,135.95,135.9,6.6224]
[1726112750939,7.69447355,135.91,135.9,6.6224]
[1726112751117,6.6201,135.95,135.9,6.6224]
[1726112751321,14.31512304,135.93,135.88,39.7535707]
[1726112751839,7.69402304,135.93,135.89,6.6229]
[1726112753639,7.69402304,135.93,135.9,6.6224]
[1726112753942,7.69402304,135.93,135.88,33.1305707]
[1726112755349,7.69402304,135.93,135.89,6.6229]
[1726112756744,14.31512304,135.93,135.88,39.7539707]
[1726112760448,7.69402304,135.93,135.89,6.6227]
[1726112761047,14.31522304,135.93,135.88,39.7539707]
[1726112761351,6.6217,135.92,135.88,16.8234707]
[1726112762242,7.6943172,135.91,135.88,16.8234707]
[1726112763545,6.6225,135.9,135.88,0.2656707]
[1726112763923,6.623,135.89,135.88,0.2656707]
[1726112772460,14.31921889,135.89,135.88,0.2656707]
[1726112775258,7.69621889,135.89,135.88,0.2656707]
[1726112775757,14.31921889,135.89,135.88,0.2656707]
[1726112776151,7.69621889,135.89,135.88,0.2656707]
[1726112777042,7.69621889,135.89,135.88,6.8890707]
[1726112777371,7.69398499,135.92,135.91,6.6218]
[1726112777531,7.69398499,135.92,135.88,16.8235707]
[1726112777880,6.6195,135.97,135.91,6.622]
[1726112778034,7.69241684,135.95,135.91,6.622]
[1726112780576,6.6181,135.99,135.94,6.6205]
[1726112780862,14.30828854,135.99,135.94,6.6205]
[1726112781060,7.69018854,135.99,135.95,6.6198]
[1726112781260,7.69018854,135.99,135.98,6.6186]
[1726112781559,6.6157,136.04,135.98,6.6186]
[1726112781767,6.6157,136.04,135.99,6.6181]
[1726112781947,7.96034839,136.02,136.01,30.393984]
[1726112782148,0.2656707,136.02,136.01,30.393984]
[1726112784943,7.69390652,136.07,136.05,6.6152]
[1726112785150,0.2656707,136.11,136.05,6.6152]
[1726112785366,7.95745831,136.11,136.05,6.6152]
[1726112787177,14.57015831,136.11,136.05,6.6152]
[1726112790373,7.95745831,136.11,136.09,6.613]
[1726112790559,7.95745831,136.11,136.08,18.00343093]
[1726112790750,0.2656707,136.11,136.08,18.00343093]
[1726112791157,0.2656707,136.11,136.1,30.389584]
[1726112795961,0.2656707,136.15,136.1,30.389584]
[1726112795962,0.2656707,136.15,136.14,23.1379]
[1726112796162,0.2656707,136.15,136.14,46.914784]
[1726112796367,0.2656707,136.15,136.14,48.38319037]
[1726112796883,0.2656707,136.15,136.14,46.914784]
[1726112804279,0.2656707,136.15,136.14,16.5271]
[1726112804479,0.2656707,136.15,136.14,23.1379]
[1726112805704,0.2656707,136.15,136.14,46.914784]
[1726112806699,0.2656707,136.15,136.14,23.1379]
[1726112807714,0.2656707,136.15,136.14,16.5271]
[1726112807882,0.2656707,136.15,136.14,23.1379]
[1726112808809,0.2656707,136.15,136.14,16.5271]
[1726112809187,0.2656707,136.15,136.14,23.1379]
[1726112813304,0.2656707,136.15,136.11,16.5306]
[1726112813628,0.2656707,136.15,136.12,6.6116]
[1726112813922,0.2656707,136.15,136.13,6.6112]
[1726112814349,0.2656707,136.15,136.12,6.6117]
[1726112817025,0.2656707,136.15,136.11,23.1428]
[1726112817728,7.95759457,136.15,136.11,23.1428]
[1726112818532,7.95759457,136.15,136.12,23.776884]
[1726112818714,0.2656707,136.15,136.12,23.776884]
[1726112819233,0.2656707,136.15,136.13,6.6113]
[1726112819816,0.2656707,136.15,136.11,16.5306]
[1726112820339,0.2656707,136.15,136.13,6.6112]
[1726112820702,0.2656707,136.15,136.12,6.6117]
[1726112821603,0.2656707,136.15,136.11,23.1428]
[1726112821830,0.2656707,136.15,136.11,16.5306]
[1726112822334,6.8759707,136.15,136.11,16.5306]
[1726112822701,0.2656707,136.15,136.11,23.1427]
[1726112822910,0.2656707,136.15,136.13,6.6112]
[1726112824913,6.8761707,136.15,136.11,16.5306]
[1726112825229,6.8761707,136.15,136.11,23.1428]
[1726112825230,0.2656707,136.15,136.11,23.1428]
[1726112825912,0.2656707,136.15,136.12,6.6117]
[1726112827705,0.2656707,136.15,136.11,23.1428]
[1726112829723,0.2656707,136.15,136.12,6.6117]
[1726112830313,0.2656707,136.15,136.11,23.1428]
[1726112830614,0.2656707,136.15,136.11,16.5306]
[1726112830615,6.8761707,136.15,136.11,16.5306]
[1726112830937,7.69255183,136.14,136.11,16.5306]
[1726112832663,7.69255183,136.14,136.09,6.6132]
[1726112832664,14.30375183,136.14,136.09,6.6132]
[1726112833732,6.6113,136.13,136.08,23.1477]
[1726112834449,7.69255183,136.14,136.09,6.6132]
[1726112834450,14.30345183,136.14,136.09,6.6132]
[1726112835230,14.30345183,136.14,136.08,16.5341]
[1726112835231,7.69255183,136.14,136.1,6.6126]
[1726112837063,7.69255183,136.14,136.08,16.5341]
[1726112837064,7.69255183,136.14,136.11,6.612]
[1726112843259,7.69255183,136.14,136.1,23.1435]
[1726112844272,14.30345183,136.14,136.1,16.5308]
[1726112844766,6.6114,136.13,136.08,6.6136]
[1726112844951,7.69255183,136.14,136.09,6.6131]
[1726112845158,6.6119,136.12,136.08,6.6136]
[1726112845467,14.30512245,136.13,136.08,6.6136]
[1726112845761,20.66662245,136.13,136.08,6.6136]
[1726112845948,22.8966,136.12,136.07,23.1493]
[1726112846731,22.8966,136.12,136.08,6.6137]
[1726112847265,6.6124,136.11,136.07,16.5352]
[1726112849188,16.2848,136.12,136.01,30.77706227]
[1726112849189,6.6132,136.1,136.04,6.6156]
[1726112850876,6.6132,136.1,136.05,6.6151]
[1726112851083,6.6123,136.11,136.06,6.6146]
[1726112851287,16.2848,136.12,136.07,1.46969271]
[1726112851482,16.2848,136.12,136.08,1.46955478]
[1726112851683,16.2848,136.12,136.06,18.0062639]
[1726112851897,16.2848,136.12,136.07,6.6138]
[1726112852195,16.2848,136.12,136.06,18.0062639]
[1726112852571,16.2848,136.12,136.08,6.6133]
[1726112853279,16.2848,136.12,136.08,16.5334]
[1726112853723,7.69382245,136.13,136.11,23.776884]
[1726112854008,0.2656707,136.15,136.14,6.6108]
[1726112855882,0.2656707,136.15,136.14,30.387684]
[1726112856700,0.2656707,136.15,136.14,53.24286487]
[1726112856902,0.2656707,136.15,136.14,51.774384]
[1726112858400,0.2656707,136.15,136.14,45.609884]
[1726112865214,0.2656707,136.15,136.14,30.387684]
[1726112865709,0.2656707,136.15,136.14,6.6108]
[1726112867050,0.2656707,136.15,136.14,30.387684]
[1726112867559,0.2656707,136.15,136.14,6.6108]
[1726112869251,0.2656707,136.15,136.13,23.1386]
[1726112870344,0.2656707,136.15,136.13,16.5274]
[1726112871718,0.2656707,136.15,136.12,6.6117]
[1726112872651,0.2656707,136.15,136.1,16.5315]
[1726112874252,0.2656707,136.15,136.11,6.6122]
[1726112876757,6.6422,136.14,136.1,16.5315]
[1726112878260,7.69361948,136.13,136.1,16.5315]
[1726112879070,7.69361948,136.13,136.1,23.1442]
[1726112881249,7.69361948,136.13,136.12,6.6118]
[1726112881565,0.2656707,136.15,136.14,23.1379]
[1726112881734,0.2656707,136.15,136.14,46.914784]
[1726112893890,0.2656707,136.15,136.14,23.1379]
[1726112894067,0.2656707,136.15,136.14,16.5271]
[1726112894391,0.2656707,136.15,136.14,23.1379]
[1726112896056,0.2656707,136.15,136.12,23.776884]
[1726112896260,0.2656707,136.15,136.13,6.6112]
[1726112898366,0.2656707,136.15,136.12,23.776884]
[1726112900289,0.2656707,136.15,136.14,6.6108]
[1726112900773,0.2656707,136.15,136.12,6.6114]
[1726112900976,0.2656707,136.15,136.11,16.5304]
[1726112902094,0.2656707,136.15,136.14,46.914784]
[1726112914816,0.2656707,136.15,136.14,16.5271]
[1726112915593,0.2656707,136.15,136.12,6.6117]
[1726112917681,6.8760707,136.15,136.1,23.776884]
[1726112917883,6.8760707,136.15,136.09,23.776884]
[1726112918085,0.2656707,136.15,136.1,6.6123]
[1726112918387,0.2656707,136.15,136.11,23.776884]
[1726112918712,0.2656707,136.15,136.1,6.6123]
[1726112920083,0.2656707,136.15,136.1,16.5307]
[1726112920284,0.2656707,136.15,136.13,23.776884]
[1726112921017,0.2656707,136.15,136.13,30.388084]
[1726112921793,0.2656707,136.15,136.14,6.6108]
[1726112923701,0.2656707,136.15,136.13,23.776884]
[1726112925187,0.2656707,136.15,136.13,30.388084]
[1726112927304,0.2656707,136.15,136.13,6.6112]
[1726112927501,0.2656707,136.15,136.12,23.1401]
[1726112930106,0.2656707,136.15,136.12,16.5284]
[1726112933621,0.2656707,136.15,136.12,23.1401]
[1726112934503,0.2656707,136.15,136.12,16.5284]
[1726112936329,7.69206362,136.14,136.12,16.5284]
[1726112940038,7.69206362,136.14,136.1,6.6127]
[1726112940206,7.69206362,136.14,136.11,6.6122]
[1726112941749,7.69206362,136.14,136.12,23.776884]
[1726112941925,0.2656707,136.15,136.13,6.6113]
[1726112943147,0.2656707,136.15,136.14,6.6108]
[1726112946150,0.2656707,136.15,136.14,30.387684]
[1726112948654,0.2656707,136.15,136.14,6.6108]
[1726112948846,0.2656707,136.15,136.14,30.387684]
[1726112951766,0.2656707,136.15,136.14,6.6108]
[1726112953861,0.2656707,136.15,136.13,23.1386]
[1726112954558,0.2656707,136.15,136.13,16.5273]
[1726112954870,0.2656707,136.15,136.13,23.1386]
[1726112955051,0.2656707,136.15,136.13,16.5273]
[1726112967339,0.2656707,136.15,136.11,6.6122]
[1726112968253,0.2656707,136.15,136.12,6.6117]
[1726112976874,6.6109,136.14,136.1,16.5319]
[1726112977089,22.006,136.14,136.1,16.5319]
[1726112977257,22.006,136.14,136.06,16.5357]
[1726112977258,15.3951,136.14,136.06,16.5357]
[1726112977447,7.69397412,136.13,136.06,16.5357]
[1726112978247,14.30527412,136.13,136.08,6.6137]
[1726112979989,6.6118,136.12,136.07,6.6141]
[1726112981769,6.6127,136.11,136.06,16.5357]
[1726112981975,6.6118,136.12,136.06,16.5357]
[1726112983091,6.6118,136.12,136.08,6.6137]
[1726112983391,7.69397412,136.13,136.08,6.6137]
[1726112983392,14.30537412,136.13,136.08,6.6137]
[1726112991699,7.69397412,136.13,136.08,16.5336]
[1726112991993,7.69397412,136.13,136.1,6.6126]
[1726112993094,7.69397412,136.13,136.09,6.6132]
[1726112993596,7.69397412,136.13,136.08,16.5336]
[1726112993794,7.69397412,136.13,136.09,6.6127]
[1726112994187,7.69397412,136.13,136.1,6.6125]
[1726112994667,7.69397412,136.13,136.12,6.6118]
[1726112994996,0.2656707,136.15,136.12,6.6118]
[1726112995495,0.2656707,136.15,136.11,6.6122]
[1726112996575,6.8763707,136.15,136.1,16.531]
[1726112997305,6.5716,136.14,136.07,16.5352]
[1726112997601,15.045,136.13,136.09,6.6131]
[1726113001888,6.5716,136.14,136.12,6.6118]
[1726113002088,0.2656707,136.15,136.13,6.6111]
[1726113002297,0.2656707,136.15,136.13,1.46909542]
[1726113002599,0.2656707,136.15,136.12,23.1404]
[1726113002806,0.2656707,136.15,136.13,6.6112]
[1726113003314,0.2656707,136.15,136.12,16.529]
[1726113005509,7.95811368,136.15,136.12,16.529]
[1726113005681,7.95811368,136.15,136.11,6.6121]
[1726113007776,7.95811368,136.15,136.12,6.6115]
[1726113008009,7.95811368,136.15,136.13,6.6111]
[1726113008178,7.95811368,136.15,136.12,1.46901668]
[1726113008502,0.2656707,136.15,136.11,23.1416]
[1726113010592,6.8760707,136.15,136.09,6.6128]
[1726113011303,6.6108,136.14,136.09,6.6128]
[1726113012004,12.6717,136.13,136.08,23.1477]
[1726113013803,6.0603,136.13,136.1,6.6123]
[1726113015301,6.0603,136.13,136.11,6.6119]
[1726113016913,0.2656707,136.15,136.11,6.6119]
[1726113017615,0.2656707,136.15,136.12,16.5286]
[1726113017912,0.2656707,136.15,136.13,6.6108]
[1726113018215,0.2656707,136.15,136.14,6.6108]
[1726113019986,0.2656707,136.15,136.12,16.5286]
[1726113020187,0.2656707,136.15,136.12,23.1404]
[1726113020816,7.95856211,136.15,136.12,23.1404]
[1726113021412,7.95856211,136.15,136.13,6.6113]
[1726113021924,7.95856211,136.15,136.12,23.1403]
[1726113027798,7.95856211,136.15,136.09,40.309684]
[1726113028015,7.95856211,136.15,136.12,6.6117]
[1726113040639,7.95856211,136.15,136.11,23.1423]
[1726113040845,12.7374,136.14,136.08,16.5338]
[1726113041138,6.6115,136.13,136.08,23.1474]
[1726113041448,14.30168112,136.13,136.08,23.1474]
[1726113043143,14.30168112,136.13,136.09,6.6131]
[1726113048648,14.30168112,136.13,136.08,16.5338]
[1726113048649,14.30168112,136.13,136.08,23.1474]
[1726113049548,6.6119,136.12,136.08,23.1474]
[1726113049847,22.0103,136.12,136.08,23.1474]
[1726113051551,22.0103,136.12,136.08,16.5338]
[1726113051737,7.69144245,136.11,136.08,16.5338]
[1726113051942,14.30374245,136.11,136.07,6.6141]
[1726113052159,14.30374245,136.11,136.06,6.6146]
[1726113052659,6.6127,136.1,136.06,6.6146]
[1726113052828,6.6127,136.1,136.05,16.5374]
[1726113053448,6.6133,136.09,136.05,16.5374]
[1726113056055,16.2659,136.08,136.0,0.2656707]
[1726113056257,16.2659,136.08,136.02,16.5415]
[1726113056834,16.2659,136.08,136.04,6.6156]
[1726113057034,16.2659,136.08,136.02,16.5415]
[1726113057665,16.2659,136.08,136.03,1.4700185]
[1726113057965,16.2659,136.08,136.02,16.5415]
[1726113059244,16.2659,136.08,136.04,6.6156]
[1726113059646,22.8797,136.08,136.03,6.6161]
[1726113060165,16.2659,136.08,136.04,6.6156]
[1726113062262,30.57028311,136.08,136.03,6.6161]
[1726113063966,30.57028311,136.08,136.02,16.5415]
[1726113063967,23.95648311,136.08,136.02,16.5415]
[1726113064272,23.95648311,136.08,136.06,6.6146]
[1726113064568,6.5827,136.1,136.08,6.6135]
[1726113064751,7.68892345,136.1,136.08,6.6135]
[1726113064944,16.5683,136.11,136.08,6.6135]
[1726113067565,16.5683,136.11,136.07,6.6142]
[1726113067761,16.5683,136.11,136.06,23.1503]
[1726113067762,23.1807,136.11,136.06,23.1503]
[1726113068472,6.6128,136.1,136.06,16.5357]
[1726113069258,6.6133,136.09,136.04,6.6156]
[1726113069474,6.6133,136.09,136.03,16.5402]
[1726113069475,6.6133,136.09,136.05,6.6151]
[1726113069852,6.6133,136.09,136.04,6.6155]
[1726113071058,6.6138,136.08,136.03,23.1562]
[1726113071368,6.6143,136.07,136.03,16.5402]
[1726113071674,6.6138,136.08,136.03,23.1563]
[1726113072671,6.6144,136.07,136.03,16.5402]
[1726113075560,7.68023028,136.06,136.03,16.5402]
[1726113077972,6.2447,136.1,136.04,23.776884]
[1726113078168,13.93098549,136.1,136.05,1.4697699]
[1726113078670,20.54368549,136.1,136.04,6.6152]
[1726113078881,20.54368549,136.1,136.05,6.615]
[1726113079557,13.93098549,136.1,136.03,16.5402]
[1726113079760,13.93098549,136.1,136.06,6.6147]
[1726113083459,13.93098549,136.1,136.02,16.5415]
[1726113083860,6.6143,136.07,136.02,23.1577]
[1726113085175,16.5332,136.09,135.99,40.321784]
[1726113085356,6.6147,136.06,136.01,6.6167]
[1726113085680,6.6147,136.06,136.02,6.6166]
[1726113086460,23.0961,136.06,136.02,6.6166]
[1726113086981,23.0961,136.06,135.99,40.321784]
[1726113086982,23.0961,136.06,136.01,6.617]
[1726113088681,7.67951543,136.05,136.01,6.617]
[1726113089781,14.29471543,136.05,136.0,6.8832707]
[1726113090074,20.42071543,136.05,136.0,6.8832707]
[1726113090260,6.6157,136.04,136.0,0.2656707]
[1726113091879,13.80551543,136.05,136.0,0.2656707]
[1726113091880,6.6162,136.03,136.0,0.2656707]
[1726113092077,6.6158,136.04,136.0,0.2656707]
[1726113095575,13.80551543,136.05,136.0,6.8829707]
[1726113095883,6.6157,136.04,136.0,0.2656707]
[1726113096070,20.42071543,136.05,136.0,0.2656707]
[1726113096272,13.80551543,136.05,136.0,0.2656707]
[1726113096862,13.80551543,136.05,136.02,6.6166]
[1726113097063,7.67951543,136.05,136.03,6.6161]
[1726113097262,16.4814,136.06,136.03,6.6161]
[1726113097676,24.16917387,136.06,136.03,6.6161]
[1726113099888,24.16917387,136.06,136.01,23.1587]
[1726113101491,24.16917387,136.06,136.02,6.6166]
[1726113102678,30.78397387,136.06,136.01,23.1591]
[1726113103686,24.16917387,136.06,136.02,6.6166]
[1726113104186,24.16917387,136.06,136.03,6.6161]
[1726113106100,7.68777387,136.06,136.03,6.6161]
[1726113111486,7.68777387,136.06,136.02,6.6166]
[1726113111991,14.30257387,136.06,136.01,23.159]
[1726113121084,6.6154,136.05,136.01,16.542]
[1726113121282,6.6157,136.04,136.0,0.2656707]
[1726113121773,14.30009623,136.04,136.0,0.2656707]
[1726113121975,6.6171,136.01,136.0,0.2656707]
[1726113122187,7.68439623,136.04,136.0,0.2656707]
[1726113123002,6.6162,136.03,136.0,0.2656707]
[1726113125033,14.30009623,136.04,136.0,0.2656707]
[1726113125175,14.30009623,136.04,136.0,6.8832707]
[1726113127310,7.68439623,136.04,136.0,0.2656707]
[1726113127597,6.0244,136.08,136.01,23.776884]
[1726113127780,7.68402278,136.07,136.02,16.5409]
[1726113127979,14.29822278,136.07,136.03,6.6161]
[1726113128188,14.29822278,136.07,136.02,16.5409]
[1726113128396,6.6148,136.06,136.02,16.5409]
[1726113129015,6.6148,136.06,136.02,23.1575]
[1726113129227,7.68402278,136.07,136.03,6.616]
[1726113130600,14.29822278,136.07,136.03,6.616]
[1726113133800,7.68402278,136.07,136.03,6.616]
[1726113136926,7.68402278,136.07,136.06,6.6147]
[1726113137421,22.0721,136.12,136.08,6.6133]
[1726113137731,29.75366801,136.12,136.08,6.6133]
[1726113137923,29.75366801,136.12,136.07,23.1488]
[1726113138501,36.36546801,136.12,136.07,23.1488]
[1726113138707,7.68156801,136.12,136.07,16.5347]
[1726113138905,7.68156801,136.12,136.08,1.4695012]
[1726113140432,7.68156801,136.12,136.1,6.6127]
[1726113142032,7.68156801,136.12,136.09,6.6131]
[1726113143405,7.68156801,136.12,136.1,6.6127]
[1726113144811,7.68156801,136.12,136.09,23.1451]
[1726113145012,7.68156801,136.12,136.09,16.532]
[1726113148531,14.29346801,136.12,136.06,23.1508]
[1726113149410,6.6123,136.11,136.06,23.1508]
[1726113150633,7.67858621,136.1,136.06,23.1508]
[1726113151024,14.29138621,136.1,136.06,16.5366]
[1726113151336,14.29138621,136.1,136.06,23.1513]
[1726113153217,14.29138621,136.1,136.06,16.5366]
[1726113153525,30.66318621,136.1,136.06,16.5366]
[1726113155140,6.6133,136.09,136.04,6.6156]
[1726113155335,24.05038621,136.1,136.03,1.46998724]
[1726113155637,24.05038621,136.1,136.07,6.6141]
[1726113155846,24.05038621,136.1,136.05,16.5372]
[1726113156318,24.05038621,136.1,136.06,6.6142]
[1726113157842,24.05038621,136.1,136.08,6.6137]
[1726113158041,7.67858621,136.1,136.08,6.6137]
[1726113158246,6.6093,136.12,136.08,6.6137]
[1726113158416,6.6093,136.12,136.07,6.6142]
[1726113158741,7.68593762,136.11,136.07,6.6142]
[1726113161525,7.68593762,136.11,136.06,6.6142]
[1726113161830,7.68593762,136.11,136.07,6.614]
[1726113166141,7.68593762,136.11,136.08,6.6136]
[1726113166845,7.68593762,136.11,136.05,16.5372]
[1726113167057,7.68593762,136.11,136.07,6.6142]
[1726113168121,14.29823762,136.11,136.06,6.6146]
[1726113169946,14.29823762,136.11,136.07,6.6142]
[1726113171040,14.29823762,136.11,136.06,6.6146]
[1726113181642,14.29823762,136.11,136.07,6.6141]
[1726113182228,7.68593762,136.11,136.07,6.6141]
[1726113182651,7.68593762,136.11,136.08,6.6136]
[1726113184948,7.68593762,136.11,136.07,6.6141]
[1726113186185,6.6127,136.1,136.05,23.1523]
[1726113186474,7.68593762,136.11,136.07,6.6141]
[1726113186681,7.68593762,136.11,136.09,6.6132]
[1726113186843,7.68593762,136.11,136.08,16.5343]
[1726113188139,6.6093,136.12,136.08,23.1478]
[1726113190446,6.6093,136.12,136.08,16.5343]
[1726113190873,6.6093,136.12,136.08,23.1479]
[1726113191369,6.6093,136.12,136.09,6.6132]
[1726113193640,14.28442329,136.12,136.09,6.6132]
[1726113195961,14.28442329,136.12,136.1,6.6123]
[1726113196962,14.28442329,136.12,136.09,6.6132]
[1726113198776,14.28442329,136.12,136.08,23.1479]